Cogmind - Beta 10.2 @@@ ROGUE MODE // 2021.02.07 @ 10:19:22 Player: TotallyRasta Result: Destroyed by B-75 Beast with Magnetic Acceleration Cannon Performance ------------- Evolutions (4) 2000 Regions Visited (8) 1600 Robots Destroyed (57) 285 Value Destroyed (1584) 1584 Prototype IDs (0) 0 Alien Tech Used (0) 0 Bonus (564) 564 TOTAL SCORE: 6033 Bonus ------- Follower Combat Kills 564 Cogmind --------- Core Integrity 0/850 Matter 300/300 Energy 99/100 System Corruption 0% Temperature Cool (12) Movement Core (50) Location -6/Extension Parts ------- > --- POWER (1) -------- (None) > --- PROPULSION (4) --- (None) > --- UTILITY (5) ------ (None) > --- WEAPON (5) ------- (None) > --- INVENTORY (4) ---- Improved Medium Armor Plating Assault Cannon Grenade Launcher Peak State ------------ > --- POWER ------------ Light Deuterium Engine > --- PROPULSION ------- Heavy Treads Armored Huge Wheel > --- UTILITY ---------- Large Storage Unit Melee Analysis Suite Weapon Shielding > --- WEAPON ----------- Maul Scythe Scythe Scythe Scythe > --- INVENTORY -------- Improved Deuterium Engine Armored Treads Large Storage Unit Melee Analysis Suite Microactuators Improved Medium Armor Plating Improved Medium Armor Plating Assault Cannon Grenade Launcher [Rating: 44] Favorites ----------- Power Light Deuterium Engine Engine Light Deuterium Engine Power Core Light Nuclear Core Propulsion Armored Treads Treads Armored Treads Leg Carbon-fiber Leg Wheel Compact Wheel Utility Large Storage Unit Device Microactuators Storage Large Storage Unit Processor Melee Analysis Suite Protection Weapon Shielding Weapon Scythe Ballistic Gun Light Assault Rifle Launcher Grenade Launcher Impact Weapon Maul Slashing Weapon Scythe Build | -11 -10 -9 -8 -7 -7 -7 -6 -6 ------- Run | Scr Mat Mat Mat Fac Was Fac Fac Ext Slots Evolved 8 | . . 2 2 2 . . 2 . Power . | . . . . . . . . . Propulsion 2 | . . . 1 1 . . . . Utility 3 | . . . 1 . . . 2 . Weapon 3 | . . 2 . 1 . . . . Parts Attached 54 | 5 9 11 2 4 2 8 13 . Power 10 | 1 2 2 . . . 3 2 . Engine 7 | 1 2 1 . . . 2 1 . Core 3 | . . 1 . . . 1 1 . Reactor . | . . . . . . . . . Propulsion 16 | 2 2 2 1 2 2 4 1 . Treads 9 | 1 1 2 1 1 2 1 . . Leg 2 | . . . . . . 1 1 . Wheel 5 | 1 1 . . 1 . 2 . . Hover . | . . . . . . . . . Flight . | . . . . . . . . . Utility 11 | . 3 2 1 1 . . 4 . Device 1 | . . . . . . . 1 . Storage 2 | . 1 . . . . . 1 . Processor 2 | . . . 1 . . . 1 . Hackware . | . . . . . . . . . Protection 6 | . 2 2 . 1 . . 1 . Artifact . | . . . . . . . . . Weapon 17 | 2 2 5 . 1 . 1 6 . Energy Gun . | . . . . . . . . . Energy Cannon . | . . . . . . . . . Ballistic Gun 2 | 2 . . . . . . . . Ballistic Cannon . | . . . . . . . . . Launcher 1 | . . . . . . . 1 . Special Weapon . | . . . . . . . . . Impact Weapon 4 | . 2 1 . . . 1 . . Slashing Weapon 10 | . . 4 . 1 . . 5 . Piercing Weapon . | . . . . . . . . . Special Melee Weapon . | . . . . . . . . . Unidentified Prototypes . | . . . . . . . . . Parts Lost 19 | . 2 1 . . . 6 10 . Power 3 | . . . . . . 1 2 . Propulsion 8 | . 2 . . . . 2 4 . Utility 4 | . . 1 . . . 1 2 . Weapon 4 | . . . . . . 2 2 . Highest Loss Streak 9 | . 1 1 . . . 4 9 . Average Slot Usage (%) 78 | . 80 99 93 93 85 80 54 . Engine 7 | . 14 7 9 7 7 6 3 . Treads 9 | . 11 11 18 16 8 7 3 . Wheel 8 | . 13 11 9 7 7 6 4 . Storage 5 | . 1 11 9 7 7 7 4 . Processor 4 | . . . 3 7 7 7 7 . Protection 7 | . 12 10 9 6 7 6 2 . Ballistic Gun 2 | . 14 . . . . . . . Impact Weapon 7 | . 13 30 . . . 2 2 . Slashing Weapon 21 | . . 12 36 38 38 33 13 . Naked Turns 307 | . . . . . . . 76 231 Heaviest Build 47 | 8 34 39 32 34 32 36 47 . Greatest Support 70 | 20 16 20 20 28 70 28 20 3 Greatest Overweight (x) 14 | . 2 2 1 2 1 3 14 . Average Overweight (x) . | . . 1 1 1 . 1 1 . Largest Inventory Capacity 10 | 4 10 10 10 10 10 10 10 4 Average Capacity 8 | 4 4 10 10 10 10 10 8 4 Most Carried 10 | 3 6 10 10 10 10 10 7 3 Average Carried 7 | 1 3 8 9 9 10 9 4 3 Final Capacity 10 | 4 10 10 10 10 10 10 4 4 Final Carried 10 | 3 6 10 10 10 10 8 3 3 Class Distribution -------------------- 100% | Mutant Dominant Class ---------------- Mutant | -10/Materials Mutant | -9/Materials Mutant | -8/Materials Mutant | -7/Factory Mutant | -7/Waste Mutant | -7/Factory Mutant | -6/Factory Mutant | -6/Extension Resources | -11 -10 -9 -8 -7 -7 -7 -6 -6 ----------- Run | Scr Mat Mat Mat Fac Was Fac Fac Ext Matter Collected 801 | . 426 65 80 40 20 50 45 75 Remotely . | . . . . . . . . . Salvage Created 2279 | . 377 630 490 62 . 501 219 . Parts 103 | . 16 27 19 3 . 34 4 . Haulers Intercepted 4 | . . 1 2 . . 1 . . Recyclers Shooed 2 | . . . 2 . . . . . Parts Field Recycled . | . . . . . . . . . Retrieved Matter . | . . . . . . . . . Parts Self-Destructed . | . . . . . . . . . Prevented . | . . . . . . . . . Kills | -11 -10 -9 -8 -7 -7 -7 -6 -6 ------- Run | Scr Mat Mat Mat Fac Was Fac Fac Ext Combat Hostiles Destroyed 33 | . 10 8 6 1 . 4 4 . Melee 21 | . 2 8 6 1 . 3 1 . Guns 8 | . 8 . . . . . . . AOE 3 | . . . . . . . 3 . Classes Destroyed 12 | . 3 5 1 . . 3 . . Worker 6 | . 1 . . . . 5 . . Builder 6 | . . . . . . 6 . . Tunneler 1 | . . . . . . 1 . . Hauler 4 | . . 1 2 . . 1 . . Recycler 4 | . . 2 1 . . . 1 . Operator 2 | . . 2 . . . . . . Watcher 1 | . . 1 . . . . . . Swarmer 3 | . 3 . . . . . . . Grunt 19 | . 7 6 2 . . . 4 . Duelist 1 | . . . 1 . . . . . Sentry 7 | . . 2 3 1 . 1 . . Hunter 3 | . . . . . . 3 . . Best Kill Streak 7 | . 3 3 5 1 . 7 4 . Combat Bots Only 4 | . 3 3 4 1 . 1 3 . Max Kills in Single Turn 3 | . 1 1 1 1 . 1 3 . Gunslinging . | . . . . . . . . . Exploded 2 | . . . . . . . 2 . Melee 1 | . 1 1 1 1 . 1 1 . Uniques/NPCs Destroyed . | . . . . . . . . . Combat | -11 -10 -9 -8 -7 -7 -7 -6 -6 -------- Run | Scr Mat Mat Mat Fac Was Fac Fac Ext Damage Taken 4897 | . 680 391 334 175 24 1467 1263 563 Core 1516 | . 185 96 76 36 . 263 297 563 Absorbed by Shields . | . . . . . . . . . Core Remaining (%) 69 | 100 26 76 86 . . 57 . . Volleys Fired 33 | . 29 . . . . . 4 . Largest 2 | . 2 . . . . . 1 . Hottest 40 | . 40 . . . . . 30 . Shots Fired 62 | . 58 . . . . . 4 . Gun 58 | . 58 . . . . . . . Cannon . | . . . . . . . . . Launcher 4 | . . . . . . . 4 . Special . | . . . . . . . . . Kinetic 58 | . 58 . . . . . . . Thermal . | . . . . . . . . . Explosive 4 | . . . . . . . 4 . Electromagnetic . | . . . . . . . . . Robot Hit Streak 9 | . 9 . . . . . 3 . Robot Miss Streak 2 | . 2 . . . . . . . Penetration Max . | . . . . . . . . . Secondary Targets 1 | . 1 . . . . . . . Max Gunslinging Chain 1 | . 1 . . . . . . . Shots Hit Robots 200 | . 57 38 31 3 . 55 16 . Core Hits 73 | . 18 12 11 2 . 15 15 . Critical Hits 3 | . . . 1 . . 2 . . Critical Kills 1 | . . . . . . 1 . . Critical Parts Destroyed 2 | . . . 1 . . 1 . . Melee Attacks 210 | . 17 57 43 5 . 69 19 . Impact 47 | . 17 21 . . . 9 . . Slashing 163 | . . 36 43 5 . 60 19 . Piercing . | . . . . . . . . . Sneak Attacks 39 | . 3 8 6 . . 22 . . Combat Hostiles . | . . . . . . . . . Follow-up Attacks 58 | . 2 16 13 . . 22 5 . Damage Inflicted 7652 | . 878 1199 1103 75 . 2666 1713 18 Guns 397 | . 397 . . . . . . . Cannons . | . . . . . . . . . Explosions 1246 | . . . . . . . 1246 . Melee 5986 | . 481 1199 1103 75 . 2666 462 . Ramming 23 | . . . . . . . 5 18 Kinetic 397 | . 397 . . . . . . . Thermal 778 | . . . . . . . 778 . Explosive 468 | . . . . . . . 468 . Electromagnetic . | . . . . . . . . . Impact 1233 | . 481 563 . . . 189 . . Slashing 4753 | . . 636 1103 75 . 2477 462 . Piercing . | . . . . . . . . . Highest Corruption . | . . . . . . . . . Average Corruption . | . . . . . . . . . Corruption Purged . | . . . . . . . . . Overload Shots . | . . . . . . . . . Overflow Damage 1024 | . 88 123 118 . . 457 238 . Projectiles . | . . . . . . . . . Explosions 228 | . . . . . . . 228 . Melee 796 | . 88 123 118 . . 457 10 . Knockbacks 6 | . 1 3 . . . 2 . . Impact 6 | . 1 3 . . . 2 . . Kinetic . | . . . . . . . . . Secondary . | . . . . . . . . . Self-Inflicted Damage 10 | . . . . . . . 2 8 Shots . | . . . . . . . . . Rammed 5 | . . . . . . . 3 2 Targets Rammed 5 | . . . . . . . 3 2 Kicked . | . . . . . . . . . Crushed . | . . . . . . . . . Highest Temperature 24 | . 24 . . . . . 5 . Average Temperature 9 | . 9 . . . . . 5 . Received Heat Transfer 1545 | . 291 195 144 54 . 234 492 135 Siege Activations . | . . . . . . . . . Robots Corrupted . | . . . . . . . . . Combat Hostiles . | . . . . . . . . . Parts Fried 5 | . 1 2 . . . 2 . . Impact Corruptions 12 | . 5 5 . . . 2 . . Robots Melted . | . . . . . . . . . Combat Hostiles . | . . . . . . . . . Parts Melted . | . . . . . . . . . Heat Transferred 500 | . . . . . . . 500 . Parts Sabotaged . | . . . . . . . . . Parts Stolen . | . . . . . . . . . Parts Stripped . | . . . . . . . . . Power Chain Reactions . | . . . . . . . . . Missiles Intercepted . | . . . . . . . . . Alert | -11 -10 -9 -8 -7 -7 -7 -6 -6 ------- Run | Scr Mat Mat Mat Fac Was Fac Fac Ext Peak Influence 384 | . 236 340 298 180 58 384 351 244 Initial 168 | . . 46 59 135 . . 67 168 Average 151 | . 118 209 217 128 48 129 266 184 Maximum Alert Level 1 | . 1 1 1 . . 1 1 1 Low Security (%) 69 | 100 73 48 23 100 100 84 20 62 Level 1 30 | . 26 51 76 . . 15 79 37 Level 2 . | . . . . . . . . . Level 3 . | . . . . . . . . . Level 4 . | . . . . . . . . . Level 5 . | . . . . . . . . . High Security . | . . . . . . . . . Max Security . | . . . . . . . . . Squads Dispatched 16 | . 1 2 3 2 . 5 2 1 Investigation 2 | . . . . . . 1 1 . Extermination 1 | . . . . . . 1 . . Reinforcement 10 | . 1 2 . 2 . 3 1 1 Assault . | . . . . . . . . . Garrison 3 | . . . 3 . . . . . Intercept . | . . . . . . . . . Construction Impeded 3 | . . . . . . 2 . 1 Haulers Reinforced 1 | . . . . . . 1 . . Stealth | -11 -10 -9 -8 -7 -7 -7 -6 -6 --------- Run | Scr Mat Mat Mat Fac Was Fac Fac Ext Distress Signals 7 | . 1 2 1 . . 1 . 2 Communications Jammed . | . . . . . . . . . Distress Signals . | . . . . . . . . . Times Spotted 87 | . 16 13 9 4 5 16 15 9 Peak Tracking Total 6 | . 5 4 4 2 2 4 5 6 Tactical Retreats 8 | . 2 . 1 . . 1 4 . Traps | -11 -10 -9 -8 -7 -7 -7 -6 -6 ------- Run | Scr Mat Mat Mat Fac Was Fac Fac Ext Traps Triggered 8 | . 1 . . 1 . 2 4 . Indirectly . | . . . . . . . . . Trap Hack Attempts . | . . . . . . . . . Triggered . | . . . . . . . . . Disarmed 1 | . 1 . . . . . . . Reprogrammed . | . . . . . . . . . Reused . | . . . . . . . . . Traps Extracted . | . . . . . . . . . Installed . | . . . . . . . . . Triggered . | . . . . . . . . . Machines | -11 -10 -9 -8 -7 -7 -7 -6 -6 ---------- Run | Scr Mat Mat Mat Fac Was Fac Fac Ext Machines Disabled 9 | . . . . . . . 9 . Max in Single Turn 9 | . . . . . . . 9 . Machines Sabotaged . | . . . . . . . . . Garrisons Compromised . | . . . . . . . . . Overloaded Fab Kills . | . . . . . . . . . Fab Network Shutdowns . | . . . . . . . . . Hacking | -11 -10 -9 -8 -7 -7 -7 -6 -6 --------- Run | Scr Mat Mat Mat Fac Was Fac Fac Ext Machines Accessed 15 | . 3 2 . . . 2 2 6 Terminals 14 | . 3 2 . . . 1 2 6 Fabricators 1 | . . . . . . 1 . . Repair Stations . | . . . . . . . . . Recycling Units . | . . . . . . . . . Scanalyzers . | . . . . . . . . . Garrison Access . | . . . . . . . . . Total Hacks 28 | . 6 5 . . . 4 3 10 Successful 11 | . 4 . . . . 1 1 5 Failed 17 | . 2 5 . . . 3 2 5 Catastrophic 5 | . . 2 . . . 1 . 2 Database Lockouts . | . . . . . . . . . Manual 10 | . 3 2 . . . 3 2 . Terminals 26 | . 6 5 . . . 2 3 10 Fabricators 2 | . . . . . . 2 . . Repair Stations . | . . . . . . . . . Recycling Units . | . . . . . . . . . Scanalyzers . | . . . . . . . . . Garrison Access . | . . . . . . . . . Terminal Hacks 11 | . 4 . . . . 1 1 5 Robot Analysis 1 | . 1 . . . . . . . Open Door 6 | . . . . . . . 1 5 Unreport Threat 1 | . . . . . . 1 . . Disarm Traps 2 | . 2 . . . . . . . Hauler Manifests 1 | . 1 . . . . . . . Fabricator Hacks . | . . . . . . . . . Repair Station Hacks . | . . . . . . . . . Recycling Unit Hacks . | . . . . . . . . . Scanalyzer . | . . . . . . . . . Garrison Access Hacks . | . . . . . . . . . Unauthorized Hacks . | . . . . . . . . . Terminals . | . . . . . . . . . Fabricators . | . . . . . . . . . Repair Stations . | . . . . . . . . . Recycling Units . | . . . . . . . . . Scanalyzers . | . . . . . . . . . Garrison Access . | . . . . . . . . . Data Cores Recovered . | . . . . . . . . . Used . | . . . . . . . . . Hacking Detections 7 | . . 2 . . . 2 1 2 Full Trace Events . | . . . . . . . . . Feedback Events . | . . . . . . . . . Feedback Blocked . | . . . . . . . . . Robot Schematics Acquired . | . . . . . . . . . Robots Built . | . . . . . . . . . Matter . | . . . . . . . . . Time . | . . . . . . . . . Total Robot Build Rating . | . . . . . . . . . Part Schematics Acquired . | . . . . . . . . . Parts Built . | . . . . . . . . . Matter . | . . . . . . . . . Time . | . . . . . . . . . Total Part Build Rating . | . . . . . . . . . Parts Repaired . | . . . . . . . . . Time . | . . . . . . . . . Parts Recycled . | . . . . . . . . . Recycled Matter . | . . . . . . . . . Retrieved Matter . | . . . . . . . . . Retrieved Components . | . . . . . . . . . Parts Scanalyzed . | . . . . . . . . . Part Schematics Acquired . | . . . . . . . . . Parts Damaged . | . . . . . . . . . Bothacking | -11 -10 -9 -8 -7 -7 -7 -6 -6 ------------ Run | Scr Mat Mat Mat Fac Was Fac Fac Ext Used RIF Installer . | . . . . . . . . . Robots Hacked . | . . . . . . . . . Non-combat . | . . . . . . . . . Combat . | . . . . . . . . . Robot Hacks Applied . | . . . . . . . . . Relay Couplers Released . | . . . . . . . . . Robots Rewired 2 | . . . . . . . . 2 Allies Hacked . | . . . . . . . . . Hacks Repelled . | . . . . . . . . . Allies | -11 -10 -9 -8 -7 -7 -7 -6 -6 -------- Run | Scr Mat Mat Mat Fac Was Fac Fac Ext Total Allies 27 | . . . . . 18 . . 9 Largest Group 18 | . . . . . 18 8 . 6 Highest-Rated Group 446 | . . . . . 446 234 . 163 Highest-Rated Ally 35 | . . . . . 35 35 . 31 Total Orders . | . . . . . . . . . Ally Attacks 193 | . . . . . 115 49 . 29 Total Damage 6577 | . . . . . 4302 1632 . 643 Kills 28 | . . . . . 15 11 . 2 Allies Corrupted . | . . . . . . . . . Allies Melted . | . . . . . . . . . Intel | -11 -10 -9 -8 -7 -7 -7 -6 -6 ------- Run | Scr Mat Mat Mat Fac Was Fac Fac Ext Robot Analysis Total 1 | . 1 . . . . . . . Derelict Logs Recovered . | . . . . . . . . . Drone Launches . | . . . . . . . . . Drone Recoveries . | . . . . . . . . . Exploration | -11 -10 -9 -8 -7 -7 -7 -6 -6 ------------- Run | Scr Mat Mat Mat Fac Was Fac Fac Ext Turns Passed 3499 | 43 629 474 270 425 401 680 346 231 Spaces Moved 2498 | 32 422 218 149 342 306 459 269 301 Core 439 | 1 3 . . . . . 134 301 Treads 47 | 2 . 23 2 . 1 11 8 . Legs 38 | . . . . . . 22 16 . Wheels 1974 | 29 419 195 147 342 305 426 111 . Hover . | . . . . . . . . . Flight . | . . . . . . . . . Fastest Speed 50 | 50 100 110 110 110 110 90 50 50 Average Speed 103 | 102 106 125 111 111 110 114 98 50 Slowest Speed 750 | 160 150 180 190 120 160 190 750 50 Overloaded Moves . | . . . . . . . . . Propulsion Burnouts . | . . . . . . . . . Robots Hopped . | . . . . . . . . . Cave-ins Triggered . | . . . . . . . . . Exploration Rate (%) 34 | 3 82 25 20 14 95 19 11 39 Regions Visited 8 Branch Regions 1 Pre-discovered Areas . | . . . . . . . . . Known Exits Taken . | . . . . . . . . . Unknown Exits Taken 6 | 1 1 1 1 . . 1 1 . Scrap Searched . | . . . . . . . . . Spaces Dug . | . . . . . . . . . Terrain Destroyed 24 | . . . . . . . 24 . Melee . | . . . . . . . . . Projectile . | . . . . . . . . . AOE 24 | . . . . . . . 24 . Terrain Rammed . | . . . . . . . . . Walls Destroyed . | . . . . . . . . . Machines Disabled . | . . . . . . . . . Actions | -11 -10 -9 -8 -7 -7 -7 -6 -6 --------- Run | Scr Mat Mat Mat Fac Was Fac Fac Ext Total 3091 | 39 521 345 197 381 370 533 324 381 Wait 241 | . 35 52 19 21 60 15 6 33 Move 2491 | 31 421 217 148 342 305 458 268 301 Hop . | . . . . . . . . . Pick Up 29 | 3 7 12 1 4 . 2 . . Fast Attach 30 | 5 5 4 1 2 2 4 7 . Attach 17 | . 2 3 1 2 . 3 6 . Detach 4 | . . 1 . 1 . 1 1 . Swap 7 | . 2 4 . . . 1 . . Drop 32 | . 6 16 . 5 3 2 . . Fire 33 | . 29 . . . . . 4 . Melee 134 | . 14 36 27 4 . 39 14 . Ram 2 | . . . . . . . . 2 Kick 3 | . . . . . . . 3 . Crush . | . . . . . . . . . Escape Stasis 23 | . . . . . . 8 15 . Rewire 45 | . . . . . . . . 45 Trap . | . . . . . . . . . Miscellaneous . | . . . . . . . . . Route ------- -11/Scrapyard -10/Materials (discovered 3 exits: *Mat x2 / [*Min]) -9/Materials (discovered 2 exits: [*Mat] / [*Sto]) -8/Materials -7/Factory -7/Waste -7/Factory -6/Factory -6/Extension History --------- Turn | Location | Event 16 | -11/Scrapyard | Discovered new exit (range 15) 44 | -11/Scrapyard | Entered Materials 167 | -10/Materials | Discovered new exit (range 15) 275 | -10/Materials | Core integrity fell below 50% 307 | -10/Materials | Build established: Mutant 404 | -10/Materials | Discovered new exit (range 4) 536 | -10/Materials | Discovered new exit (range 9) 673 | -10/Materials | Entered another Materials area 673 | -9/Materials | Evolved 2 slots: Weapon x2 871 | -9/Materials | Discovered new exit (range 15) 1102 | -9/Materials | Discovered new exit (range 16) 1147 | -9/Materials | Entered another Materials area 1147 | -8/Materials | Evolved 2 slots: Propulsion x1, Utility x1 1189 | -8/Materials | Garrison activated, responded to threat 1327 | -8/Materials | Discovered new exit (range 12) 1417 | -8/Materials | Entered Factory 1417 | -7/Factory | Evolved 2 slots: Propulsion x1, Weapon x1 1842 | -7/Factory | Sucked down chute 1842 | -7/Factory | Entered Waste 1869 | -7/Waste | Spotted C-40 Crusher 1869 | -7/Waste | Spotted C-40 Crusher 1879 | -7/Waste | Warlord forces began an assault 1882 | -7/Waste | Allies destroyed C-40 Crusher 1888 | -7/Waste | Allies destroyed C-40 Crusher 1892 | -7/Waste | Spotted C-40 Crusher 1896 | -7/Waste | Allies destroyed C-40 Crusher 1905 | -7/Waste | Spotted C-40 Crusher 1905 | -7/Waste | Spotted C-40 Crusher 1911 | -7/Waste | Allies destroyed C-40 Crusher 1917 | -7/Waste | Allies destroyed C-40 Crusher 1930 | -7/Waste | Spotted C-40 Crusher 1947 | -7/Waste | Allies destroyed C-40 Crusher 1989 | -7/Waste | Discovered new exit (range 13) 2243 | -7/Waste | Entered Factory 2243 | -7/Factory | Accompanied by 8 allies 2875 | -7/Factory | Lost 4 parts (1p2n1u) 2912 | -7/Factory | Discovered new exit (range 15) 2923 | -7/Factory | Entered another Factory area 2923 | -6/Factory | Evolved 2 slots: Utility x2 2994 | -6/Factory | Spotted B-75 Beast 3133 | -6/Factory | Lost 9 parts (1p4n2u2w) 3153 | -6/Factory | Released all parts (2) 3262 | -6/Factory | Released all parts (7) 3267 | -6/Factory | Discovered new exit (range 6) 3269 | -6/Factory | Entered Extension 3291 | -6/Extension | Rescued a captive Derelict 3306 | -6/Extension | Rescued a captive Derelict 3311 | -6/Extension | Rescued a captive Derelict 3348 | -6/Extension | Rescued a captive Derelict 3364 | -6/Extension | Rescued a captive Derelict 3366 | -6/Extension | Rescued a captive Derelict 3459 | -6/Extension | Core integrity fell below 50% 3487 | -6/Extension | Rescued a captive Derelict 3489 | -6/Extension | Spotted B-75 Beast 3492 | -6/Extension | Spotted B-75 Beast 3493 | -6/Extension | Core integrity fell below 20% 3500 | -6/Extension | Destroyed by B-75 Beast with Magnetic Acceleration Cannon Last Messages --------------- 03452_ Attempting to rewire SG-PNQ(h). 03455_ UK-UBW(g) destroyed. 03456_ Attempting to rewire SG-PNQ(h). 03463_ SG-PNQ(h) rewired. 03464_ SG-PNQ(h) destroyed. 03472_ R-10 Processor inserts Lgt. Angular Momentum Engine into recycling unit. 03475_ R-10 Processor inserts Carbon-fiber Leg into recycling unit. 03484_ W-25 Informer sends out distress signal. 03486_ Connecting with Door Terminal... >>Open Sealed Heavy Doors opened. 03487_ 89-IDC(g): "Free at last!" 03492_ Slammed into Y-54 Guardian. 03492_ 89-IDC(g) knocked back. 03492_ Y-54 Guardian destroyed. 03499_ Slammed into U-05 Engineer. 03499_ Machine disabled. 03499_ ALERT: Construction progress impeded, dispatching reinforcements to local area. Map ----- +----------------------------------------------------+ | % %%%+[=%=[ #?????????????????????????????????? | | #########*==[ #?????????????????????????????????? | | ????????#*%[* #?????????????????????????????????? | | ????????#!=! #?????????????????????????????????? | | ????????# %! #?????????????????????????????????? | | ###########/####?????????????????????????????????? | | #?????????????????????????????????? | | #?????????????????????????????????? | | #?????????????????????????????????? | | #?????????????????????????????????? | | ########## #?????????????????????????????????? | | #??????# #?????????????????????????????????? | | ##??????# #?????????#???????????????????????? | | #???????# #????????? ???????????????????????? | | ##???????# #????????? ???????????????????????? | | ?????????# #????????? ???????????????????????? | | ?????????##### #???????## ???????????????????????? | | ?????????????# #???????# #??????????????????????? | | ?????????????# #???????# #??????????????????????? | | ?????????????# #???????# #??????????????????????? | | ?????????##### #???????# #??????????????????????? | | ?????????# #???????# #??????????????????????? | | ?????????###T# #???????# #??????????????????????? | | ???????????### #???????# u#??????????????????????? | | ?????????????# #???????# #??????????????????????? | | ?????????????# #?######?#@#??????????????????????? | | ???????????### ### ## ###%###????????????????????? | | ???????????#"" "" " ""#????????????????????? | | ???????????# "%" " #????????????????????? | | ???????????# %! #????????????????????? | | ???????????# * #????????????????????? | | ???????????# #????????????????????? | | ????????? ??????????????????? | | ???????? ?????????????????? | | ?????? BB ???????????????? | | ???? BB ??????????????? | | ??? ?????????????? | | ???######### #########????????????? | | ???????????# #????????????????????? | | ???????????# #????????????????????? | | ???????????# #????????????????????? | | ???????????# #????????????????????? | | ???????????######T#"""#######????????????????????? | | ?????????????????#???????????????????????????????? | | ?????????????????????????????????????????????????? | | | | | | | | | | | +----------------------------------------------------+ Best States ------------- Heat Dissipation 37 Energy Generation 18 Energy Capacity 290 Matter Stores 300 Matter Capacity 300 Sight Range 16 Terrain Scan Density 10 Armor Coverage 450 Weapon Shielding 33 Melee Speed Boost 20 Evasion (%) 50 Melee Accuracy 10 Recoil Reduction 1 Item Schematics ----------------- None Robot Schematics ------------------ None Fabricated ------------ Nothing Alien Tech Used ----------------- None Achievements -------------- None Challenges ------------ None Game ------ Seed RecoilGyrokineticCharger Manual? 0 Play Time 00:47:43 Cumulative 96.0 hours Start 2021.02.07 @ 09:31:38 End 2021.02.07 @ 10:19:22 Sessions 1 Manual Loads 0 Difficulty Rogue Special Mode None Game No. 117 Rogue 117 Adventurer 0 Explorer 0 Win Type - Total 0 Types 0/0/0/0/0/0/0/0/0 Lore% 53 Gallery% 57 Achievement% 44 Wizard Run 0 Options --------- ASCII 0 Keyboard 1 Movement Numpad Keybinds 0 Fullscreen 1 Font 18/SmallcapsGlow Map View 76x50 Tactical HUD 1 Map Filters NONE Filters NONE Steam 1 RUN: 1d046cff-4f86-436a-9bca-b3f1d5075f17